fUSD/lending_fUSD_20240329
["ID","MTS","AMOUNT","RATE_DAILY","PERIOD"]
[320957663,1711721511776,-194.03673117,0.0005288,120]
[320957664,1711721511786,-194.03673117,0.0005288,120]
[320957665,1711721511796,-194.03673117,0.0005288,120]
[320957666,1711721511806,-194.03673117,0.0005288,120]
[320957667,1711721511817,-194.03673117,0.0005288,120]
[320957668,1711721511827,-194.03673117,0.0005288,120]
[320957669,1711721511837,-194.03673117,0.0005288,120]
[320957670,1711721511846,-194.03673117,0.0005288,120]
[320957671,1711721511855,-194.03673117,0.0005288,120]
[320957672,1711721511865,-194.03673117,0.0005288,120]
[320957673,1711721511875,-194.03673117,0.0005288,120]
[320957674,1711721511884,-194.03673117,0.0005288,120]
[320957675,1711721511894,-194.03673117,0.0005288,120]
[320957676,1711721511905,-194.53,0.0005288,120]
[320957677,1711721511915,-1755.95778782,0.000529,30]
[320957678,1711721511924,-946.0605911,0.000529,30]
[320957679,1711721511933,-462.0,0.000529,40]
[320957680,1711721511942,-295304.85126877,0.000529,22]
[320957681,1711721511952,-175.5936007,0.00052941,10]
[320957682,1711721511961,-717.0,0.0005298,15]
[320957683,1711721511970,-393.0,0.0005298,15]
[320957684,1711721511982,-717.0,0.0005299,15]
[320957685,1711721511992,-393.0,0.0005299,15]
[320957686,1711721512001,-206.61,0.0005299,15]
[320957687,1711721512010,-1000.0,0.00053,2]
[320957688,1711721512019,-20752.06983302,0.00053,30]
[320957689,1711721512029,-600.0,0.00053,54]
[320957690,1711721512038,-150.0,0.00053028,2]
[320957691,1711721512048,-150.0,0.00053149,30]
[320957692,1711721512057,-500.0,0.0005315,120]
[320957693,1711721512067,-473.62265823,0.0005315,120]
[320957694,1711721512077,-500.0,0.0005315,120]
[320957695,1711721512086,-630.31723505,0.0005315,120]
[320957696,1711721512095,-527.0,0.0005315,120]
[320957697,1711721512104,-500.0,0.0005315,120]
[320957698,1711721512113,-500.0,0.0005315,120]
[320957699,1711721512122,-500.0,0.0005315,120]
[320957700,1711721512131,-520.11,0.0005315,120]
[320957701,1711721512140,-702.15,0.0005315,120]
[320957702,1711721512149,-500.0,0.0005315,120]
[320957703,1711721512158,-177.4457938,0.0005315,120]
[320957704,1711721512167,-2032.52,0.0005315,120]
[320957705,1711721512176,-523.19,0.0005315,120]
[320957706,1711721512186,-500.0,0.0005315,120]
[320957707,1711721512195,-536.91,0.0005315,120]
[320957708,1711721512205,-500.0,0.0005315,120]
[320957709,1711721512215,-500.0,0.0005315,120]
[320957710,1711721512224,-540.69,0.0005315,120]
[320957711,1711721512234,-500.0,0.0005315,120]
[320957712,1711721512243,-500.0,0.0005315,120]
[320957713,1711721512252,-511.3,0.0005315,120]
[320957714,1711721512262,-500.0,0.0005315,120]
[320957715,1711721512271,-500.0,0.0005315,120]
[320957716,1711721512280,-500.0,0.0005315,120]
[320957717,1711721512290,-500.0,0.0005315,120]
[320957718,1711721512299,-500.0,0.0005315,120]
[320957719,1711721512309,-500.0,0.0005315,120]
[320957720,1711721512319,-500.0,0.0005315,2]
[320957721,1711721512329,-500.0,0.0005315,120]
[320957722,1711721512338,-500.0,0.0005315,120]
[320957723,1711721512347,-500.0,0.0005315,120]
[320957724,1711721512357,-539.4,0.0005315,120]
[320957725,1711721512367,-188.61,0.0005315,120]
[320957726,1711721512376,-500.0,0.0005315,120]
[320957727,1711721512386,-449.02240366,0.0005315,120]
[320957728,1711721512395,-500.0,0.0005315,120]
[320957729,1711721512404,-500.0,0.0005315,120]
[320957730,1711721512413,-500.0,0.0005315,120]
[320957731,1711721512422,-500.0,0.0005315,120]
[320957732,1711721512431,-695.58,0.0005315,120]
[320957733,1711721512440,-1476.12,0.0005315,120]
[320957734,1711721512450,-900.44,0.0005315,120]
[320957735,1711721512459,-607.78,0.0005315,120]
[320957736,1711721512468,-546.4,0.0005315,120]
[320957737,1711721512477,-1452.59,0.0005315,120]
[320957738,1711721512487,-987.25,0.0005315,120]
[320957739,1711721512496,-743.76,0.0005315,120]
[320957740,1711721512506,-939.77,0.0005315,120]
[320957741,1711721512515,-500.0,0.0005315,120]
[320957742,1711721512524,-500.0,0.0005315,120]
[320957743,1711721512534,-894.21,0.0005315,120]
[320957744,1711721512543,-500.0,0.0005315,120]
[320957745,1711721512552,-1140.0,0.0005315,120]
[320957746,1711721512561,-1627.67,0.0005315,120]
[320957747,1711721512570,-1032.63,0.0005315,120]
[320957748,1711721512579,-508.58,0.0005315,120]
[320957749,1711721512588,-3279.75,0.0005315,120]
[320957750,1711721512598,-3061.85,0.0005315,120]
[320957751,1711721512607,-522.71,0.0005315,120]
[320957752,1711721512616,-1319.96,0.0005315,120]
[320957753,1711721512625,-15867.17,0.0005315,120]
[320957754,1711721512634,-1675.75,0.0005315,120]
[320957755,1711721512643,-1560.02,0.0005315,120]
[320957756,1711721512652,-1118.96,0.0005315,120]
[320957757,1711721512662,-967.68,0.0005315,120]
[320957758,1711721512671,-608.15,0.0005315,120]
[320957759,1711721512681,-1421.12,0.0005315,120]
[320957760,1711721512689,-500.0,0.0005315,120]
[320957761,1711721512698,-796.35,0.0005315,120]
[320957762,1711721512708,-583.97,0.0005315,120]
[320957763,1711721512717,-1038.38,0.0005315,120]
[320957764,1711721512727,-7190.42,0.0005315,120]
[320957765,1711721512737,-1116.7,0.0005315,120]
[320957766,1711721512746,-509.07,0.0005315,120]
[320957767,1711721512756,-702.78,0.0005315,120]
[320957768,1711721512765,-3016.23,0.0005315,120]
[320957769,1711721512774,-1173.93,0.0005315,120]
[320957770,1711721512783,-1914.75,0.0005315,120]
[320957771,1711721512793,-1271.74,0.0005315,120]
[320957772,1711721512802,-620.53,0.0005315,120]
[320957773,1711721512811,-656.72,0.0005315,120]
[320957774,1711721512820,-500.0,0.0005315,120]
[320957775,1711721512831,-500.0,0.0005315,120]
[320957776,1711721512841,-412.52833044,0.0005315,120]
[320957777,1711721512849,-2949.66,0.0005315,120]
[320957778,1711721512858,-500.0,0.0005315,120]
[320957779,1711721512867,-666.66,0.0005315,120]
[320957780,1711721512876,-755.48,0.0005315,120]
[320957781,1711721512886,-1139.02,0.0005315,120]
[320957782,1711721512895,-504.5,0.0005315,120]
[320957783,1711721512904,-550.55,0.0005315,120]
[320957784,1711721512914,-2635.4,0.0005315,120]
[320957785,1711721512923,-1127.22,0.0005315,120]
[320957786,1711721512933,-571.73,0.0005315,120]
[320957787,1711721512942,-561.64,0.0005315,120]
[320957788,1711721512951,-659.67,0.0005315,120]
[320957789,1711721512960,-5797.8,0.0005315,120]
[320957790,1711721512969,-852.21,0.0005315,120]
[320957791,1711721512980,-500.0,0.0005315,120]
[320957792,1711721512989,-953.39,0.0005315,120]
[320957793,1711721512998,-538.99,0.0005315,120]
[320957794,1711721513007,-777.84,0.0005315,120]
[320957795,1711721513016,-1011.18,0.0005315,120]
[320957796,1711721513025,-831.93,0.0005315,120]
[320957797,1711721513035,-758.01,0.0005315,120]
[320957798,1711721513044,-1019.27,0.0005315,120]
[320957799,1711721513053,-1859.09,0.0005315,120]
[320957800,1711721513062,-1375.8,0.0005315,120]
[320957801,1711721513072,-1237.12,0.0005315,120]
[320957802,1711721513081,-1303.91,0.0005315,120]
[320957803,1711721513091,-2340.36,0.0005315,120]
[320957804,1711721513100,-1120.19,0.0005315,120]
[320957805,1711721513110,-599.9,0.0005315,120]
[320957806,1711721513119,-518.83,0.0005315,120]
[320957807,1711721513129,-1073.01,0.0005315,120]
[320957808,1711721513138,-2553.22,0.0005315,120]
[320957809,1711721513147,-2095.82,0.0005315,120]
[320957810,1711721513157,-1620.53,0.0005315,120]
[320957811,1711721513166,-759.3,0.0005315,120]
[320957812,1711721513176,-1293.35,0.0005315,120]
[320957813,1711721513185,-521.52,0.0005315,120]
[320957814,1711721513195,-3958.07,0.0005315,120]
[320957815,1711721513205,-528.84,0.0005315,120]
[320957816,1711721513215,-827.58,0.0005315,120]
[320957817,1711721513224,-500.0,0.0005315,120]
[320957818,1711721513234,-10208.37,0.0005315,120]
[320957819,1711721513243,-1483.13,0.0005315,120]
[320957820,1711721513253,-709.97,0.0005315,120]
[320957821,1711721513262,-2258.08,0.0005315,120]
[320957822,1711721513271,-811.38,0.0005315,120]
[320957823,1711721513281,-1213.11,0.0005315,120]
[320957824,1711721513291,-679.62,0.0005315,120]
[320957825,1711721513300,-500.0,0.0005315,120]
[320957826,1711721513310,-500.0,0.0005315,120]
[320957827,1711721513319,-591.79,0.0005315,120]
[320957828,1711721513329,-1260.6,0.0005315,120]
[320957829,1711721513338,-1157.9,0.0005315,120]
[320957830,1711721513347,-920.83,0.0005315,120]
[320957831,1711721513356,-2746.44,0.0005315,120]
[320957832,1711721513366,-591.05,0.0005315,120]
[320957833,1711721513375,-788.73,0.0005315,120]
[320957834,1711721513384,-929.65,0.0005315,120]
[320957835,1711721513393,-1784.97,0.0005315,120]
[320957836,1711721513403,-921.81,0.0005315,120]
[320957837,1711721513412,-1005.38,0.0005315,120]
[320957838,1711721513421,-754.19,0.0005315,21]
[320957839,1711721513430,-1513.84,0.0005315,120]
[320957840,1711721513440,-500.0,0.0005315,120]
[320957841,1711721513450,-556.58,0.0005315,120]
[320957842,1711721513459,-3254.17,0.0005315,120]
[320957843,1711721513468,-1273.09,0.0005315,120]
[320957844,1711721513479,-500.0,0.0005315,120]
[320957845,1711721513488,-741.31,0.0005315,120]
[320957846,1711721513498,-622.97,0.0005315,120]
[320957847,1711721513508,-747.32,0.0005315,120]
[320957848,1711721513517,-579.78,0.0005315,120]
[320957849,1711721513527,-639.33,0.0005315,120]
[320957850,1711721513537,-1490.8,0.0005315,120]
[320957851,1711721513596,-1635.18,0.0005315,120]
[320957852,1711721513605,-553.82,0.0005315,120]
[320957853,1711721513614,-1076.6,0.0005315,120]
[320957854,1711721513625,-1031.96,0.0005315,120]
[320957855,1711721513634,-1467.64,0.0005315,120]
[320957856,1711721513643,-627.97,0.0005315,120]
[320957857,1711721513656,-578.16,0.0005315,120]
[320957858,1711721513668,-287.89561068,0.0005315,120]
[320957859,1711721513679,-968.69,0.0005315,120]
[320957860,1711721513689,-2451.0,0.00053158,120]
[320957861,1711721513701,-4775.0,0.00053158,120]
[320957862,1711721513712,-42999.0,0.00053158,120]
[320957863,1711721513723,-151.55112149,0.00053201,60]
[320957864,1711721513738,-1258.83,0.00053246,2]
[320957865,1711721513750,-150.0,0.00053276,14]
[320957866,1711721513762,-150.0,0.00053276,14]
[320957867,1711721513773,-462.0,0.000534,40]
[320957868,1711721513783,-157.73362987,0.00053423,60]
[320957869,1711721513793,-500.0,0.00053424,120]
[320957870,1711721513802,-500.0,0.00053424,120]
[320957871,1711721513811,-527.0,0.00053424,120]
[320957872,1711721513820,-500.0,0.00053424,120]
[320957873,1711721513831,-500.0,0.00053424,120]
[320957874,1711721513841,-500.0,0.00053424,120]
[320957875,1711721513851,-520.11,0.00053424,120]
[320957876,1711721513861,-702.15,0.00053424,120]
[320957877,1711721513870,-159.62629104,0.00053424,120]
[320957878,1711721513880,-2032.52,0.00053424,120]
[320957879,1711721513889,-500.0,0.00053424,30]
[320957880,1711721513898,-523.19,0.00053424,120]
[320957881,1711721513909,-493.99613291,0.00053424,120]
[320957882,1711721513919,-536.91,0.00053424,120]
[320957883,1711721513929,-500.0,0.00053424,120]
[320957884,1711721513938,-500.0,0.00053424,120]
[320957885,1711721513948,-540.69,0.00053424,120]
[320957886,1711721513957,-500.0,0.00053424,120]
[320957887,1711721513967,-500.0,0.00053424,120]
[320957888,1711721513977,-511.3,0.00053424,120]
[320957889,1711721513986,-500.0,0.00053424,120]
[320957890,1711721513995,-500.0,0.00053424,120]
[320957891,1711721514004,-888.0,0.00053424,120]
[320957892,1711721514013,-888.0,0.00053424,120]
[320957893,1711721514022,-888.0,0.00053424,120]
[320957894,1711721514030,-888.0,0.00053424,120]
[320957895,1711721514039,-888.0,0.00053424,120]
[320957896,1711721514048,-888.0,0.00053424,120]
[320957897,1711721514057,-781.3696857,0.00053424,120]
[320957898,1711721514066,-500.0,0.00053424,120]
[320957899,1711721514074,-500.0,0.00053424,120]
[320957900,1711721514083,-500.0,0.00053424,120]
[320957901,1711721514092,-500.0,0.00053424,120]
[320957902,1711721514101,-500.0,0.00053424,2]
[320957903,1711721514110,-500.0,0.00053424,120]
[320957904,1711721514119,-567.93073549,0.00053424,120]
[320957905,1711721514127,-500.0,0.00053424,120]
[320957906,1711721514136,-539.4,0.00053424,120]
[320957907,1711721514145,-188.61,0.00053424,120]
[320957908,1711721514154,-500.0,0.00053424,120]
[320957909,1711721514163,-500.0,0.00053424,120]
[320957910,1711721514172,-500.0,0.00053424,120]
[320957911,1711721514181,-500.0,0.00053424,120]
[320957912,1711721514189,-500.0,0.00053424,120]
[320957913,1711721514198,-695.58,0.00053424,120]
[320957914,1711721514207,-1476.12,0.00053424,120]
[320957915,1711721514216,-900.44,0.00053424,120]
[320957916,1711721514226,-607.78,0.00053424,120]
[320957917,1711721514236,-546.4,0.00053424,120]
[320957918,1711721514245,-1452.59,0.00053424,120]
[320957919,1711721514254,-987.25,0.00053424,120]
[320957920,1711721514265,-743.76,0.00053424,120]
[320957921,1711721514275,-939.77,0.00053424,120]
[320957922,1711721514284,-500.0,0.00053424,120]
[320957923,1711721514294,-198.1260774,0.00053424,120]
[320957924,1711721514303,-894.21,0.00053424,120]
[320957925,1711721514312,-500.0,0.00053424,120]
[320957926,1711721514322,-1140.0,0.00053424,120]
[320957927,1711721514331,-1627.67,0.00053424,120]
[320957928,1711721514340,-1032.63,0.00053424,120]
[320957929,1711721514350,-508.58,0.00053424,120]
[320957930,1711721514359,-3279.75,0.00053424,120]
[320957931,1711721514369,-3061.85,0.00053424,120]
[320957932,1711721514378,-1319.96,0.00053424,120]
[320957933,1711721514388,-522.71,0.00053424,120]
[320957934,1711721514397,-15867.17,0.00053424,120]
[320957935,1711721514407,-1675.75,0.00053424,120]
[320957936,1711721514416,-1118.96,0.00053424,120]
[320957937,1711721514425,-1560.02,0.00053424,120]
[320957938,1711721514435,-967.68,0.00053424,120]
[320957939,1711721514444,-608.15,0.00053424,120]
[320957940,1711721514454,-1421.12,0.00053424,120]
[320957941,1711721514463,-500.0,0.00053424,120]
[320957942,1711721514473,-796.35,0.00053424,120]
[320957943,1711721514483,-583.97,0.00053424,120]
[320957944,1711721514492,-1038.38,0.00053424,120]
[320957945,1711721514502,-7190.42,0.00053424,120]
[320957946,1711721514512,-1116.7,0.00053424,120]
[320957947,1711721514521,-509.07,0.00053424,120]
[320957948,1711721514531,-702.78,0.00053424,120]
[320957949,1711721514540,-3016.23,0.00053424,120]
[320957950,1711721514550,-1173.93,0.00053424,120]
[320957951,1711721514560,-1914.75,0.00053424,120]
[320957952,1711721514570,-1271.74,0.00053424,120]
[320957953,1711721514581,-620.53,0.00053424,120]
[320957954,1711721514591,-656.72,0.00053424,120]
[320957955,1711721514601,-500.0,0.00053424,120]
[320957956,1711721514611,-500.0,0.00053424,120]
[320957957,1711721514757,-2949.66,0.00053424,120]
[320957958,1711721514772,-513.33,0.00053424,120]
[320957959,1711721514783,-666.66,0.00053424,120]
[320957960,1711721514792,-755.48,0.00053424,120]
[320957961,1711721514801,-1139.02,0.00053424,120]
[320957962,1711721514810,-504.5,0.00053424,120]
[320957963,1711721514820,-550.55,0.00053424,120]
[320957964,1711721514831,-2635.4,0.00053424,120]
[320957965,1711721514841,-1127.22,0.00053424,120]
[320957966,1711721514851,-571.73,0.00053424,120]
[320957967,1711721514860,-561.64,0.00053424,120]
[320957968,1711721514871,-659.67,0.00053424,120]
[320957969,1711721514880,-5797.8,0.00053424,120]
[320957970,1711721514890,-500.0,0.00053424,120]
[320957971,1711721514899,-852.21,0.00053424,120]
[320957972,1711721514909,-953.39,0.00053424,120]
[320957973,1711721514919,-538.99,0.00053424,120]
[320957974,1711721514930,-777.84,0.00053424,120]
[320957975,1711721514939,-1011.18,0.00053424,120]
[320957976,1711721514949,-831.93,0.00053424,120]
[320957977,1711721514958,-758.01,0.00053424,120]
[320957978,1711721514968,-1019.27,0.00053424,120]
[320957979,1711721514977,-1859.09,0.00053424,120]
[320957980,1711721514988,-1375.8,0.00053424,120]
[320957981,1711721514997,-1237.12,0.00053424,120]
[320957982,1711721515007,-1303.91,0.00053424,120]
[320957983,1711721515017,-2340.36,0.00053424,120]
[320957984,1711721515027,-1120.19,0.00053424,120]
[320957985,1711721515037,-599.9,0.00053424,120]
[320957986,1711721515047,-518.83,0.00053424,120]
[320957987,1711721515057,-1073.01,0.00053424,120]
[320957988,1711721515066,-2553.22,0.00053424,120]
[320957989,1711721515076,-2095.82,0.00053424,120]
[320957990,1711721515086,-1620.53,0.00053424,120]
[320957991,1711721515096,-759.3,0.00053424,120]
[320957992,1711721515106,-1293.35,0.00053424,120]
[320957993,1711721515116,-521.52,0.00053424,120]
[320957994,1711721515125,-3958.07,0.00053424,120]
[320957995,1711721515134,-528.84,0.00053424,120]
[320957996,1711721515144,-827.58,0.00053424,120]
[320957997,1711721515154,-500.0,0.00053424,120]
[320957998,1711721515163,-10208.37,0.00053424,120]
[320957999,1711721515173,-1483.13,0.00053424,120]
[320958000,1711721515183,-709.97,0.00053424,120]
[320958001,1711721515193,-2258.08,0.00053424,120]
[320958002,1711721515202,-811.38,0.00053424,120]
[320958003,1711721515212,-1213.11,0.00053424,120]
[320958004,1711721515222,-679.62,0.00053424,120]
[320958005,1711721515232,-500.0,0.00053424,120]
[320958006,1711721515242,-500.0,0.00053424,120]
[320958007,1711721515252,-1520.3,0.00053424,120]
[320958008,1711721515262,-1260.6,0.00053424,120]
[320958009,1711721515273,-1157.9,0.00053424,120]
[320958010,1711721515282,-920.83,0.00053424,120]
[320958011,1711721515292,-2746.44,0.00053424,120]
[320958012,1711721515302,-591.05,0.00053424,120]
[320958013,1711721515312,-788.73,0.00053424,120]
[320958014,1711721515321,-929.65,0.00053424,120]
[320958015,1711721515331,-1784.97,0.00053424,120]
[320958016,1711721515343,-921.81,0.00053424,120]
[320958017,1711721515352,-1005.38,0.00053424,120]
[320958018,1711721515362,-754.19,0.00053424,21]
[320958019,1711721515373,-1513.84,0.00053424,120]
[320958020,1711721515383,-500.0,0.00053424,120]
[320958021,1711721515393,-556.58,0.00053424,120]
[320958022,1711721515402,-3254.17,0.00053424,120]
[320958023,1711721515412,-1273.09,0.00053424,120]
[320958024,1711721515422,-500.0,0.00053424,120]
[320958025,1711721515432,-741.31,0.00053424,120]
[320958026,1711721515442,-622.97,0.00053424,120]
[320958027,1711721515451,-747.32,0.00053424,120]
[320958028,1711721515462,-579.78,0.00053424,120]
[320958029,1711721515471,-639.33,0.00053424,120]
[320958030,1711721515482,-1490.8,0.00053424,120]
[320958031,1711721515491,-1635.18,0.00053424,120]
[320958032,1711721515500,-553.82,0.00053424,120]
[320958033,1711721515510,-1076.6,0.00053424,120]
[320958034,1711721515519,-1031.96,0.00053424,120]
[320958035,1711721515529,-1467.64,0.00053424,120]
[320958036,1711721515538,-627.97,0.00053424,120]
[320958037,1711721515548,-578.16,0.00053424,120]
[320958038,1711721515557,-968.69,0.00053424,120]
[320958039,1711721515567,-233.52222222,0.00053425,120]
[320958040,1711721515577,-826.18475658,0.00053429,2]
[320958041,1711721515587,-1081.49618554,0.00053445,30]
[320958042,1711721515597,-38750.21900329,0.00053446,120]
[320958043,1711721515607,-208.25028726,0.00053522,97]
[320958044,1711721515616,-151.0,0.00053534,120]
[320958045,1711721515626,-17598.0,0.000536,120]
[320958046,1711721515635,-500.0,0.00053698,120]
[320958047,1711721515645,-500.0,0.00053698,120]
[320958048,1711721515654,-527.0,0.00053698,120]
[320958049,1711721515663,-500.0,0.00053698,120]
[320958050,1711721515673,-500.0,0.00053698,120]
[320958051,1711721515682,-500.0,0.00053698,120]
[320958052,1711721515692,-520.11,0.00053698,120]
[320958053,1711721515701,-702.15,0.00053698,120]
[320958054,1711721515711,-2032.52,0.00053698,120]
[320958055,1711721515720,-523.19,0.00053698,120]
[320958056,1711721515730,-536.91,0.00053698,120]
[320958057,1711721515740,-500.0,0.00053698,120]
[320958058,1711721515752,-500.0,0.00053698,120]
[320958059,1711721515761,-540.69,0.00053698,120]
[320958060,1711721515771,-500.0,0.00053698,120]
[320958061,1711721515780,-500.0,0.00053698,120]
[320958062,1711721515790,-511.3,0.00053698,120]
[320958063,1711721515800,-500.0,0.00053698,120]
[320958064,1711721515809,-500.0,0.00053698,120]
[320958065,1711721515818,-500.0,0.00053698,120]
[320958066,1711721515829,-500.0,0.00053698,120]
[320958067,1711721515839,-500.0,0.00053698,120]
[320958068,1711721515849,-500.0,0.00053698,120]
[320958069,1711721515859,-500.0,0.00053698,2]
[320958070,1711721515868,-500.0,0.00053698,120]
[320958071,1711721515877,-500.0,0.00053698,120]
[320958072,1711721515887,-539.4,0.00053698,120]
[320958073,1711721515896,-188.61,0.00053698,120]
[320958074,1711721515906,-500.0,0.00053698,120]
[320958075,1711721515914,-500.0,0.00053698,120]
[320958076,1711721515924,-500.0,0.00053698,120]
[320958077,1711721515932,-500.0,0.00053698,120]
[320958078,1711721515941,-500.0,0.00053698,120]
[320958079,1711721515951,-695.58,0.00053698,120]
[320958080,1711721515960,-1476.12,0.00053698,120]
[320958081,1711721515969,-900.44,0.00053698,120]
[320958082,1711721515978,-607.78,0.00053698,120]
[320958083,1711721515988,-546.4,0.00053698,120]
[320958084,1711721515997,-1452.59,0.00053698,120]
[320958085,1711721516007,-987.25,0.00053698,120]
[320958086,1711721516016,-743.76,0.00053698,120]
[320958087,1711721516026,-939.77,0.00053698,120]
[320958088,1711721516037,-500.0,0.00053698,120]
[320958089,1711721516047,-894.21,0.00053698,120]
[320958090,1711721516056,-500.0,0.00053698,120]
[320958091,1711721516066,-1140.0,0.00053698,120]
[320958092,1711721516075,-1627.67,0.00053698,120]
[320958093,1711721516085,-1032.63,0.00053698,120]
[320958094,1711721516094,-508.58,0.00053698,120]
[320958095,1711721516103,-3279.75,0.00053698,120]
[320958096,1711721516113,-3061.85,0.00053698,120]
[320958097,1711721516122,-1319.96,0.00053698,120]
[320958098,1711721516132,-522.71,0.00053698,120]
[320958099,1711721516141,-15867.17,0.00053698,120]
[320958100,1711721516151,-1675.75,0.00053698,120]
[320958101,1711721516161,-1118.96,0.00053698,120]
[320958102,1711721516170,-1560.02,0.00053698,120]
[320958103,1711721516179,-967.68,0.00053698,120]
[320958104,1711721516189,-608.15,0.00053698,120]
[320958105,1711721516199,-465.94652819,0.00053698,120]
[320958106,1711721516208,-1421.12,0.00053698,120]
[320958107,1711721516218,-796.35,0.00053698,120]
[320958108,1711721516227,-583.97,0.00053698,120]
[320958109,1711721516249,-1038.38,0.00053698,120]
[320958110,1711721516259,-7190.42,0.00053698,120]
[320958111,1711721516270,-1116.7,0.00053698,120]
[320958112,1711721516280,-509.07,0.00053698,120]
[320958113,1711721516290,-702.78,0.00053698,120]
[320958114,1711721516301,-3016.23,0.00053698,120]
[320958115,1711721516311,-1173.93,0.00053698,120]
[320958116,1711721516321,-1914.75,0.00053698,120]
[320958117,1711721516331,-1271.74,0.00053698,120]
[320958118,1711721516341,-620.53,0.00053698,120]
[320958119,1711721516351,-656.72,0.00053698,120]
[320958120,1711721516361,-500.0,0.00053698,120]
[320958121,1711721516371,-500.0,0.00053698,120]
[320958122,1711721516381,-2949.66,0.00053698,120]
[320958123,1711721516391,-666.66,0.00053698,120]
[320958124,1711721516400,-755.48,0.00053698,120]
[320958125,1711721516410,-1139.02,0.00053698,120]
[320958126,1711721516421,-504.5,0.00053698,120]
[320958127,1711721516431,-2635.4,0.00053698,120]
[320958128,1711721516441,-550.55,0.00053698,120]
[320958129,1711721516451,-1127.22,0.00053698,120]
[320958130,1711721516461,-571.73,0.00053698,120]
[320958131,1711721516471,-561.64,0.00053698,120]
[320958132,1711721516480,-659.67,0.00053698,120]
[320958133,1711721516490,-5797.8,0.00053698,120]
[320958134,1711721516499,-852.21,0.00053698,120]
[320958135,1711721516508,-433.58611786,0.00053698,120]
[320958136,1711721516519,-953.39,0.00053698,120]
[320958137,1711721516528,-777.84,0.00053698,120]
[320958138,1711721516538,-538.99,0.00053698,120]
[320958139,1711721516548,-1011.18,0.00053698,120]
[320958140,1711721516558,-831.93,0.00053698,120]
[320958141,1711721516567,-758.01,0.00053698,120]
[320958142,1711721516577,-1019.27,0.00053698,120]
[320958143,1711721516587,-1859.09,0.00053698,120]
[320958144,1711721516597,-1375.8,0.00053698,120]
[320958145,1711721516606,-1237.12,0.00053698,120]
[320958146,1711721516616,-1303.91,0.00053698,120]
[320958147,1711721516626,-2340.36,0.00053698,120]
[320958148,1711721516636,-1120.19,0.00053698,120]
[320958149,1711721516646,-599.9,0.00053698,120]
[320958150,1711721516655,-518.83,0.00053698,120]
[320958151,1711721516666,-1073.01,0.00053698,120]
[320958152,1711721516675,-2553.22,0.00053698,120]
[320958153,1711721516686,-2095.82,0.00053698,120]
[320958154,1711721516695,-1620.53,0.00053698,120]
[320958155,1711721516705,-759.3,0.00053698,120]
[320958156,1711721516715,-1293.35,0.00053698,120]
[320958157,1711721516725,-521.52,0.00053698,120]
[320958158,1711721516736,-3958.07,0.00053698,120]
[320958159,1711721516749,-528.84,0.00053698,120]
[320958160,1711721516759,-827.58,0.00053698,120]
[320958161,1711721516769,-500.0,0.00053698,120]
[320958162,1711721516779,-10208.37,0.00053698,120]